bitfinex/quotes_BTCUSD_20241027
["timestamp","ask_amount","ask_price","bid_price","bid_amount"]
[1730064203659,0.001644,67832.0,67831.0,0.56313281]
[1730064206471,0.001644,67832.0,67831.0,0.56313601]
[1730064212992,0.001644,67832.0,67831.0,0.55852365]
[1730064213248,0.001644,67832.0,67831.0,0.78954959]
[1730064213481,0.001644,67832.0,67831.0,0.8337332]
[1730064213738,0.001646,67837.0,67836.0,0.005]
[1730064214000,0.001646,67837.0,67836.0,0.64405158]
[1730064214254,0.001646,67837.0,67836.0,0.65143017]
[1730064214487,0.001646,67837.0,67836.0,0.76029404]
[1730064214757,0.001646,67837.0,67836.0,0.89291328]
[1730064215456,0.001646,67837.0,67836.0,1.01591328]
[1730064215675,0.001646,67837.0,67836.0,1.0156289]
[1730064215900,0.001646,67837.0,67836.0,0.8830533]
[1730064216627,0.001646,67837.0,67836.0,0.87106242]
[1730064216830,0.001646,67837.0,67836.0,0.88305217]
[1730064217541,0.001646,67837.0,67836.0,1.01553686]
[1730064217983,0.001646,67837.0,67836.0,1.01553678]
[1730064218186,0.001646,67837.0,67836.0,0.88305209]
[1730064218621,0.001646,67837.0,67836.0,1.01550166]
[1730064220151,0.001646,67837.0,67836.0,1.01523085]
[1730064221037,0.001646,67837.0,67836.0,0.88281048]
[1730064221683,0.001646,67837.0,67836.0,0.87082081]
[1730064222535,0.001646,67837.0,67836.0,0.8828104]
[1730064225001,0.001646,67837.0,67836.0,0.88272057]
[1730064226848,0.001646,67837.0,67836.0,0.7903519]
[1730064227375,0.001646,67837.0,67836.0,0.88272057]
[1730064228778,0.001644,67838.0,67837.0,0.175412]
[1730064229004,0.001644,67838.0,67837.0,0.5007547]
[1730064229220,0.001644,67838.0,67837.0,0.61670147]
[1730064229506,0.001644,67838.0,67837.0,0.61668875]
[1730064229751,0.001644,67838.0,67837.0,0.61668876]
[1730064230225,0.001644,67838.0,67837.0,0.64622876]
[1730064236703,0.001644,67838.0,67837.0,0.64622901]
[1730064241112,0.001644,67838.0,67837.0,0.64161745]
[1730064241315,0.001644,67838.0,67837.0,0.64622888]
[1730064242763,0.001644,67838.0,67837.0,0.64625131]
[1730064242974,0.001644,67838.0,67837.0,0.82835131]
[1730064243771,0.00167,67843.0,67842.0,0.33976967]
[1730064243985,0.00167,67843.0,67842.0,0.76802916]
[1730064244210,0.00167,67843.0,67842.0,0.78417819]
[1730064244434,0.00167,67843.0,67842.0,0.78417729]
[1730064245074,0.00167,67843.0,67842.0,0.81371729]
[1730064245705,0.00167,67843.0,67842.0,0.89461729]
[1730064246356,0.00167,67843.0,67842.0,0.78433518]
[1730064246793,0.00167,67843.0,67842.0,0.91471311]
[1730064247226,0.00167,67843.0,67842.0,0.90272375]
[1730064247446,0.00167,67843.0,67842.0,0.91471222]
[1730064249665,0.00167,67843.0,67842.0,0.91671222]
[1730064249875,0.00167,67843.0,67842.0,0.91471222]
[1730064250731,0.00167,67843.0,67842.0,1.24597719]
[1730064250942,0.00167,67843.0,67842.0,1.2029364]
[1730064251155,0.00167,67843.0,67842.0,1.20293569]
[1730064251374,0.00167,67843.0,67842.0,1.07059741]
[1730064251586,0.00167,67843.0,67842.0,1.20294169]
[1730064251803,0.00167,67843.0,67842.0,1.2029564]
[1730064252032,0.00167,67843.0,67842.0,1.07059741]
[1730064252669,0.1415516,67862.0,67842.0,1.07059741]
[1730064252670,0.0485313,67862.0,67854.0,0.005]
[1730064252916,0.0485313,67862.0,67861.0,0.14736]
[1730064253134,0.0485313,67862.0,67861.0,0.1519708]
[1730064253355,0.0787,67863.0,67862.0,0.147357]
[1730064253573,0.0787,67863.0,67862.0,0.1519678]
[1730064253780,0.0787,67863.0,67862.0,0.16807397]
[1730064254422,0.0787,67871.0,67862.0,0.02071697]
[1730064254643,0.226039,67871.0,67863.0,0.2993218]
[1730064254893,0.005,67870.0,67864.0,0.0046108]
[1730064255087,0.005,67870.0,67865.0,0.14735]
[1730064255333,0.152341,67870.0,67865.0,0.14735]
[1730064255538,0.147343,67869.0,67866.0,0.0160962]
[1730064255750,0.0962,67868.0,67866.0,0.0160962]
[1730064255959,0.0962,67868.0,67864.0,0.147352]
[1730064256190,0.243544,67868.0,67867.0,0.01607488]
[1730064256418,0.0962,67868.0,67865.0,0.01607987]
[1730064256641,0.0962,67868.0,67863.0,0.147354]
[1730064256871,0.0962,67868.0,67866.0,0.01607737]
[1730064257096,0.0962,67868.0,67863.0,0.147355]
[1730064257226,0.0962,67868.0,67867.0,0.01607488]
[1730064257446,0.243545,67868.0,67862.0,0.147357]
[1730064257651,0.243545,67868.0,67863.0,0.00461053]
[1730064257859,0.0962,67868.0,67864.0,0.37337718]
[1730064258069,0.32484,67871.0,67865.0,0.00461053]
[1730064258294,0.1775,67871.0,67866.0,0.00461053]
[1730064258506,0.1775,67871.0,67867.0,0.00461053]
[1730064258712,0.324838,67871.0,67867.0,0.01606441]
[1730064258939,0.324838,67871.0,67868.0,0.00461026]
[1730064258940,0.1775,67871.0,67868.0,0.00461026]
[1730064259141,0.0787,67871.0,67869.0,0.00461026]
[1730064259345,0.0787,67871.0,67867.0,0.147346]
[1730064259556,0.0787,67871.0,67865.0,0.22141365]
[1730064259557,0.0787,67871.0,67868.0,0.02067212]
[1730064259759,0.0787,67871.0,67869.0,0.00461016]
[1730064259975,0.0787,67871.0,67870.0,0.01605694]
[1730064260168,0.0787,67871.0,67867.0,0.147346]
[1730064260398,0.147336,67872.0,67868.0,0.02067208]
[1730064260571,0.222334,67873.0,67868.0,0.01606192]
[1730064260771,0.222334,67873.0,67866.0,0.147349]
[1730064260977,0.147336,67872.0,67867.0,0.02067463]
[1730064261181,0.075,67873.0,67867.0,0.16341041]
[1730064261388,0.075,67873.0,67867.0,0.01606441]
[1730064261601,0.147337,67872.0,67867.0,0.01606441]
[1730064261834,0.075,67873.0,67867.0,0.147345]
[1730064261835,0.222334,67873.0,67867.0,0.147345]
[1730064262052,0.147337,67872.0,67868.0,0.01606192]
[1730064262287,0.075,67873.0,67868.0,0.01606192]
[1730064262288,0.222334,67873.0,67868.0,0.01606192]
[1730064262606,0.075,67873.0,67865.0,0.22141365]
[1730064262739,0.147337,67872.0,67869.0,0.01605943]
[1730064263021,0.147337,67872.0,67866.0,0.147348]
[1730064263196,0.147339,67871.0,67870.0,0.01605694]
[1730064263395,0.147339,67871.0,67866.0,0.147348]
[1730064263599,0.075,67873.0,67870.0,0.01605694]
[1730064263970,0.075,67873.0,67867.0,0.15195522]
[1730064263971,0.147337,67872.0,67867.0,0.147345]
[1730064264176,0.075,67873.0,67871.0,0.01605444]
[1730064264308,0.000822,67868.0,67867.0,0.147347]
[1730064264506,0.000822,67868.0,67867.0,0.15195718]
[1730064266053,0.000822,67868.0,67867.0,0.30746099]
[1730064270404,0.000822,67868.0,67867.0,0.307461]
[1730064274067,0.000822,67868.0,67867.0,0.30285081]
[1730064274272,0.000822,67868.0,67867.0,0.30746084]
[1730064274487,0.000822,67868.0,67867.0,0.30746089]
[1730064274906,0.000822,67868.0,67867.0,0.40466092]
[1730064276626,0.000822,67868.0,67867.0,0.42071123]
[1730064279450,0.000822,67868.0,67867.0,0.42808753]
[1730064279924,0.000822,67868.0,67867.0,0.50748753]
[1730064283322,0.000822,67868.0,67867.0,0.50748713]
[1730064285901,0.000822,67868.0,67867.0,0.50748712]
[1730064286120,0.000822,67868.0,67867.0,0.49550112]
[1730064286354,0.000822,67868.0,67867.0,0.50748712]
[1730064287631,0.000822,67868.0,67867.0,0.72890077]
[1730064287853,0.000822,67868.0,67867.0,0.50748712]
[1730064288065,0.000822,67868.0,67867.0,0.55155372]
[1730064289577,0.000822,67868.0,67867.0,0.50748712]
[1730064290198,0.000822,67868.0,67867.0,0.57361349]
[1730064290630,0.000822,67868.0,67867.0,0.7363566]
[1730064292597,0.000822,67868.0,67867.0,0.67023023]
[1730064293224,0.000822,67868.0,67867.0,0.90265788]
[1730064293482,0.000822,67868.0,67867.0,0.78139831]
[1730064293909,0.000822,67868.0,67867.0,0.78143141]
[1730064294116,0.000822,67868.0,67867.0,0.69328064]
[1730064294327,0.000822,67868.0,67867.0,0.72280064]
[1730064296962,0.000822,67868.0,67867.0,0.71081505]
[1730064297188,0.000822,67868.0,67867.0,0.72280001]
[1730064298860,0.000822,67868.0,67867.0,0.7228599]
[1730064302456,0.000822,67868.0,67867.0,0.56000608]
[1730064302668,0.000822,67868.0,67867.0,0.72287568]
[1730064304854,0.00167,67876.0,67875.0,0.244429]
[1730064305076,0.00167,67876.0,67875.0,0.68006967]
[1730064305292,0.00167,67876.0,67875.0,0.58807227]
[1730064305524,0.00167,67876.0,67875.0,0.69833361]
[1730064306952,0.00167,67876.0,67875.0,0.58807227]
[1730064307436,0.00167,67876.0,67875.0,0.94260592]
[1730064307700,0.00167,67876.0,67875.0,0.72119227]
[1730064308159,0.00167,67876.0,67875.0,0.82119227]
[1730064308331,0.00167,67876.0,67875.0,0.65832267]
[1730064311042,0.00167,67876.0,67875.0,0.65832061]
[1730064311702,0.00167,67876.0,67875.0,0.95327251]
[1730064312347,0.00167,67876.0,67875.0,0.82103488]
[1730064312691,0.00167,67876.0,67875.0,0.95327251]
[1730064313722,0.00167,67876.0,67875.0,0.82103488]
[1730064314920,0.00167,67876.0,67875.0,0.82090791]
[1730064318633,0.00167,67876.0,67875.0,0.82090743]
[1730064319050,0.00167,67876.0,67875.0,0.82090742]
[1730064319460,0.00167,67876.0,67875.0,0.90129368]
[1730064319679,0.00167,67876.0,67875.0,0.91316888]
[1730064319929,0.00167,67878.0,67877.0,0.280445]
[1730064320158,0.00167,67878.0,67877.0,0.73845053]
[1730064320389,0.00167,67878.0,67877.0,0.75669203]
[1730064322640,0.00167,67878.0,67877.0,0.64665281]
[1730064323381,0.00167,67878.0,67877.0,0.72735281]
[1730064323604,0.00167,67878.0,67877.0,0.83739203]
[1730064324285,0.00167,67878.0,67877.0,0.67489189]
[1730064324507,0.00167,67878.0,67877.0,0.83734195]
[1730064325198,0.00167,67878.0,67877.0,0.82732286]
[1730064333317,0.00167,67878.0,67877.0,0.93169153]
[1730064333743,0.00167,67878.0,67877.0,1.14844477]
[1730064333978,0.00167,67878.0,67877.0,0.97750956]
[1730064334197,0.00167,67878.0,67877.0,1.06987823]
[1730064334447,0.00167,67889.0,67888.0,0.27418967]
[1730064334657,0.00167,67889.0,67888.0,0.79547391]
[1730064335058,0.00167,67889.0,67888.0,0.8117869]
[1730064335863,0.00167,67889.0,67888.0,0.89976341]
[1730064337330,0.00167,67900.0,67899.0,0.005]
[1730064337586,0.00167,67900.0,67899.0,0.40712935]
[1730064337818,0.00167,67900.0,67899.0,0.42340411]
[1730064338051,0.00167,67900.0,67899.0,0.33103544]
[1730064339017,0.00167,67900.0,67899.0,0.42340411]
[1730064341379,0.00167,67900.0,67899.0,0.42340402]
[1730064344377,0.00167,67900.0,67899.0,0.45292402]
[1730064347234,0.00167,67900.0,67899.0,0.44094424]
[1730064349854,0.00167,67900.0,67899.0,0.45292393]
[1730064350093,0.00167,67900.0,67899.0,0.86650625]
[1730064350318,0.00167,67900.0,67899.0,0.55272393]
[1730064350549,0.00167,67900.0,67899.0,0.59669981]
[1730064350769,0.00167,67900.0,67899.0,0.58472012]
[1730064351013,0.00167,67900.0,67899.0,0.59669941]
[1730064352372,0.00167,67900.0,67899.0,0.55272353]
[1730064352620,0.00167,67900.0,67899.0,0.77413718]
[1730064352849,0.00167,67900.0,67899.0,0.63582353]
[1730064353773,0.00167,67900.0,67899.0,0.86419439]
[1730064356467,0.00167,67900.0,67899.0,0.70180861]
[1730064357040,0.00167,67900.0,67899.0,0.70180598]
[1730064358291,0.00167,67900.0,67899.0,0.79820009]
[1730064358494,0.00167,67900.0,67899.0,0.65918832]
[1730064358760,0.00167,67900.0,67899.0,0.37502274]
[1730064359185,0.00167,67900.0,67899.0,0.33103468]
[1730064360142,0.00167,67900.0,67899.0,0.31905557]
[1730064360364,0.00167,67900.0,67899.0,0.33103513]
[1730064361006,0.00167,67900.0,67899.0,0.42213513]
[1730064361230,0.00167,67900.0,67899.0,0.42213491]
[1730064362355,0.00167,67900.0,67899.0,1.10234398]
[1730064362575,0.00167,67900.0,67899.0,0.90292574]
[1730064362790,0.00167,67900.0,67899.0,0.81494412]
[1730064362995,0.00167,67900.0,67899.0,1.12872644]
[1730064363231,0.00167,67900.0,67899.0,0.92492115]
[1730064363438,0.00167,67900.0,67899.0,0.81494412]
[1730064365106,0.00167,67900.0,67899.0,0.81491344]
[1730064365541,0.00167,67900.0,67899.0,0.9248706]
[1730064366158,0.00167,67900.0,67899.0,0.91289135]
[1730064366321,0.00167,67900.0,67899.0,0.81491278]
[1730064366527,0.00167,67900.0,67899.0,0.92486994]
[1730064369627,0.00167,67900.0,67899.0,0.81491278]
[1730064369847,0.00167,67900.0,67899.0,0.90733064]
[1730064370316,0.00167,67911.0,67904.0,0.152266]
[1730064370561,0.00167,67911.0,67904.0,0.994867]
[1730064370792,0.00167,67911.0,67904.0,0.82880433]
[1730064371013,0.00167,67911.0,67904.0,0.921173]
[1730064371891,0.00167,67911.0,67904.0,0.92113581]
[1730064373225,0.00167,67911.0,67904.0,0.95065581]
[1730064373674,0.00167,67911.0,67904.0,0.95065446]
[1730064375496,0.00167,67911.0,67904.0,0.96832265]
[1730064375715,0.00167,67911.0,67904.0,1.1897363]
[1730064375947,0.00167,67911.0,67904.0,0.96832265]
[1730064376155,0.00167,67911.0,67904.0,0.97032265]
[1730064376329,0.00167,67911.0,67904.0,0.96832265]
[1730064380171,0.00167,67911.0,67904.0,1.01415527]
[1730064380412,0.00167,67911.0,67904.0,1.10026434]
[1730064380691,0.00167,67911.0,67904.0,1.10026219]
[1730064380897,0.00167,67911.0,67904.0,0.96832265]
[1730064381337,0.00167,67911.0,67904.0,1.10025679]
[1730064381548,0.00167,67911.0,67904.0,0.96832265]
[1730064382827,0.00167,67911.0,67904.0,1.1897363]
[1730064383038,0.00167,67911.0,67904.0,0.96832265]
[1730064383228,0.00167,67911.0,67904.0,0.97032265]
[1730064384906,0.00167,67911.0,67904.0,0.96832265]
[1730064385260,0.00167,67911.0,67910.0,0.279973]
[1730064385583,0.00167,67911.0,67910.0,0.71336777]
[1730064388762,0.00167,67911.0,67910.0,0.71328726]
[1730064392500,0.00167,67911.0,67910.0,0.82319802]
[1730064392733,0.00167,67911.0,67910.0,0.81122078]
[1730064392956,0.00167,67911.0,67910.0,0.82319774]
[1730064393455,0.00167,67911.0,67910.0,0.82328625]
[1730064396580,0.00167,67911.0,67910.0,0.81130929]
[1730064397068,0.00167,67911.0,67910.0,0.82328625]
[1730064398519,0.00167,67911.0,67910.0,0.71333975]
[1730064402757,0.00167,67911.0,67910.0,0.71342275]
[1730064407004,0.00167,67911.0,67910.0,0.62105408]
[1730064407233,0.00167,67911.0,67910.0,0.71342275]
[1730064407490,0.00167,67911.0,67910.0,0.71346588]
[1730064410312,0.00167,67911.0,67910.0,1.0037955]
[1730064410538,0.00167,67911.0,67910.0,0.78238185]
[1730064410765,0.00167,67911.0,67910.0,0.73646588]
[1730064411270,0.00167,67911.0,67910.0,0.71346588]
[1730064411491,0.00167,67911.0,67910.0,0.81486588]
[1730064411964,0.00167,67911.0,67910.0,0.81025936]
[1730064412688,0.00167,67911.0,67910.0,0.81486577]
[1730064413616,0.00167,67911.0,67910.0,0.94690407]
[1730064413852,0.00167,67911.0,67910.0,0.81486577]
[1730064414309,0.00167,67911.0,67910.0,0.94690407]
[1730064415381,0.00167,67911.0,67910.0,0.81486577]
[1730064415681,0.00167,67911.0,67910.0,0.86078791]
[1730064419517,0.00167,67911.0,67910.0,0.96078791]
[1730064420750,0.00167,67911.0,67910.0,0.96103142]
[1730064421069,0.00167,67911.0,67910.0,0.96103118]
[1730064421292,0.00167,67911.0,67910.0,0.94905457]
[1730064421516,0.00167,67911.0,67910.0,0.9610314]
[1730064422164,0.00167,67911.0,67910.0,0.79831888]
[1730064422379,0.00167,67911.0,67910.0,0.96104327]
[1730064423636,0.00167,67911.0,67910.0,0.91512113]
[1730064423845,0.00167,67911.0,67910.0,0.96104181]
[1730064424496,0.0459235,67925.0,67924.0,0.147223]
[1730064424705,0.0459235,67925.0,67924.0,0.15919983]
[1730064424922,0.1857147,67926.0,67924.0,0.02810683]
[1730064425137,0.1857147,67926.0,67925.0,0.15919783]
[1730064425547,0.1857147,67926.0,67925.0,0.17532534]
[1730064426504,0.1537147,67926.0,67925.0,0.16795498]
[1730064428882,0.1545367,67926.0,67925.0,0.16795498]
[1730064432435,0.0187367,67926.0,67925.0,0.16795498]
[1730064434150,0.0187367,67926.0,67925.0,0.17532534]
[1730064434367,0.0187367,67926.0,67925.0,0.16795498]
[1730064434577,0.0187367,67926.0,67925.0,0.17532534]
[1730064435885,0.0187367,67926.0,67925.0,0.16334851]
[1730064436093,0.0187367,67926.0,67925.0,0.17532534]
[1730064439800,0.0187367,67926.0,67925.0,0.16334851]
[1730064440018,0.0187367,67926.0,67925.0,0.17532534]
[1730064443471,0.0187367,67926.0,67925.0,0.39673899]
[1730064443715,0.0187367,67926.0,67925.0,0.17532513]
[1730064444140,0.0187367,67926.0,67925.0,0.21940447]
[1730064446324,0.0187367,67926.0,67925.0,0.17532513]
[1730064448231,0.0187367,67926.0,67925.0,0.21940447]
[1730064448702,0.0187367,67926.0,67925.0,0.2194131]
[1730064448918,0.0187367,67926.0,67925.0,0.0721921]
[1730064450210,0.0187367,67926.0,67925.0,0.02810413]
[1730064450677,0.0187367,67926.0,67925.0,0.17532513]
[1730064451135,0.0187367,67926.0,67925.0,0.02810413]
[1730064451409,0.0187367,67926.0,67925.0,0.17532513]
[1730064451857,0.0187367,67926.0,67925.0,0.02810413]
[1730064452067,0.0187367,67926.0,67925.0,0.02974813]
[1730064452305,0.0187367,67926.0,67925.0,0.0738361]
[1730064453399,0.0187367,67926.0,67925.0,0.07383591]
[1730064454687,0.0187367,67926.0,67925.0,0.22105691]
[1730064455517,0.0187367,67926.0,67925.0,0.20908029]
[1730064455718,0.0187367,67926.0,67925.0,0.22105693]
[1730064459134,0.0187367,67926.0,67925.0,0.20908029]
[1730064459352,0.0187367,67926.0,67925.0,0.22105693]
[1730064461552,0.0187367,67926.0,67925.0,0.07383593]
[1730064461739,0.0187367,67926.0,67925.0,0.22105693]
[1730064462404,0.0187367,67926.0,67925.0,0.07383593]
[1730064462638,0.0187367,67926.0,67925.0,0.22105693]
[1730064463492,0.0187367,67926.0,67925.0,0.07383593]
[1730064465453,0.0187367,67926.0,67925.0,0.02974815]
[1730064467024,0.1659557,67926.0,67925.0,0.02974815]
[1730064467227,0.0187367,67926.0,67925.0,0.02974829]
[1730064477038,0.0187367,67926.0,67925.0,0.17696929]
[1730064477257,0.0187367,67926.0,67925.0,0.02974829]
[1730064478509,0.0187367,67926.0,67925.0,0.02237796]
[1730064478737,0.0187367,67926.0,67925.0,0.02237798]
[1730064479431,0.0187367,67926.0,67925.0,0.02974834]
[1730064483357,0.0187367,67926.0,67925.0,0.02965189]
[1730064485090,0.0187367,67926.0,67925.0,0.05917189]
[1730064485314,0.0187367,67926.0,67925.0,0.02965189]
[1730064486849,0.0187367,67926.0,67925.0,0.01767506]
[1730064487063,0.0187367,67926.0,67925.0,0.02965189]
[1730064492691,0.0187367,67926.0,67925.0,0.02228153]
[1730064492917,0.1659557,67926.0,67925.0,0.02228153]
[1730064493576,0.1659557,67926.0,67925.0,0.01767506]
[1730064493789,0.1659557,67926.0,67925.0,0.0222816]
[1730064495096,0.0187367,67926.0,67925.0,0.0222816]
[1730064499271,0.0187367,67926.0,67925.0,0.2626026]
[1730064499689,0.0187367,67926.0,67925.0,0.42047681]
[1730064500097,0.0187367,67926.0,67925.0,0.46456538]
[1730064500508,0.0187367,67926.0,67925.0,0.42047681]
[1730064500933,0.0187367,67926.0,67925.0,0.46456538]
[1730064501149,0.0187367,67926.0,67925.0,0.42047681]
[1730064501797,0.0187367,67926.0,67925.0,0.46456538]
[1730064502224,0.0187367,67926.0,67925.0,0.42047681]
[1730064505017,0.0187367,67926.0,67925.0,0.42047632]
[1730064506102,0.0187367,67926.0,67925.0,0.49657632]
[1730064507190,0.0187367,67926.0,67925.0,0.56270917]
[1730064507410,0.0187367,67926.0,67925.0,0.49657632]
[1730064508084,0.0187367,67926.0,67925.0,0.54064989]
[1730064508309,0.0187367,67926.0,67925.0,0.49657632]
[1730064509340,0.0187367,67926.0,67925.0,0.34935532]
[1730064509778,0.0187367,67926.0,67925.0,0.48680051]
[1730064509970,0.0187367,67926.0,67925.0,0.49735657]
[1730064520244,0.0187367,67926.0,67925.0,0.48538012]
[1730064520484,0.0187367,67926.0,67925.0,0.49735633]
[1730064522974,0.0187367,67926.0,67925.0,0.71876998]
[1730064523247,0.0187367,67926.0,67925.0,0.5414126]
[1730064524178,0.0187367,67926.0,67925.0,0.54141243]
[1730064527676,0.0187367,67926.0,67925.0,0.54140561]
[1730064528408,0.0187367,67926.0,67925.0,0.52942957]
[1730064528635,0.0187367,67926.0,67925.0,0.54140544]
[1730064530213,0.0187367,67926.0,67925.0,0.49735599]
[1730064530433,0.0187367,67926.0,67925.0,0.54139987]
[1730064531356,0.0187367,67926.0,67925.0,0.54139878]
[1730064535455,0.0187367,67926.0,67925.0,0.57091878]
[1730064535682,0.0187367,67926.0,67925.0,0.54139878]
[1730064538431,0.0187367,67926.0,67925.0,0.54140746]
[1730064538925,0.0187367,67926.0,67925.0,0.54140729]
[1730064541496,0.0187367,67926.0,67925.0,0.48538012]
[1730064541729,0.0187367,67926.0,67925.0,0.49735586]
[1730064543745,0.0187367,67926.0,67925.0,0.56343004]
[1730064544748,0.0187367,67926.0,67925.0,0.49735586]
[1730064545289,0.0187367,67926.0,67925.0,0.56343004]
[1730064545495,0.0187367,67926.0,67925.0,0.59295004]
[1730064548109,0.0187367,67926.0,67925.0,0.75561398]
[1730064548315,0.0187367,67926.0,67925.0,0.59295004]
[1730064548521,0.0187367,67926.0,67925.0,0.75561663]
[1730064548960,0.0187367,67926.0,67925.0,0.75561652]
[1730064549407,0.0187367,67926.0,67925.0,0.68954234]
[1730064549844,0.0187367,67926.0,67925.0,0.75564174]
[1730064550680,0.0187367,67926.0,67925.0,0.68954234]
[1730064551083,0.0187367,67926.0,67925.0,0.77764125]
[1730064551678,0.0187367,67926.0,67925.0,0.68954234]
[1730064552085,0.0187367,67926.0,67925.0,0.77764125]
[1730064552285,0.0187367,67926.0,67925.0,0.777676]
[1730064552493,0.0187367,67926.0,67925.0,0.68954304]
[1730064553515,0.0187367,67926.0,67925.0,0.87004467]
[1730064553690,0.0187367,67926.0,67925.0,0.78191171]
[1730064554137,0.0187367,67926.0,67925.0,0.87004467]
[1730064554581,0.0187367,67926.0,67925.0,0.87003594]
[1730064554803,0.0187367,67926.0,67925.0,0.77766727]
[1730064555272,0.0187367,67926.0,67925.0,0.68953738]
[1730064555522,0.0187367,67926.0,67925.0,0.76569164]
[1730064555739,0.0187367,67926.0,67925.0,0.77766696]
[1730064556645,0.0187367,67926.0,67925.0,0.99210529]
[1730064556875,0.0187367,67926.0,67925.0,0.78690556]
[1730064557558,0.0187367,67926.0,67925.0,1.10831921]
[1730064557798,0.0187367,67926.0,67925.0,0.90990556]
[1730064560337,0.0187367,67926.0,67925.0,0.92716672]
[1730064560599,0.0187367,67926.0,67925.0,0.92716542]
[1730064564335,0.0187367,67926.0,67925.0,0.92716541]
[1730064567606,0.0187367,67926.0,67925.0,0.92213122]
[1730064567821,0.0187367,67926.0,67925.0,1.14354487]
[1730064568072,0.000834,67936.0,67935.0,0.455099]
[1730064568275,0.000834,67936.0,67935.0,1.01206706]
[1730064568522,0.000834,67936.0,67935.0,0.91353834]
[1730064568747,0.000834,67936.0,67935.0,1.02344064]
[1730064569470,0.000834,67936.0,67935.0,1.00144259]
[1730064569686,0.000834,67936.0,67935.0,0.91353834]
[1730064570611,0.000834,67936.0,67935.0,1.0014237]
[1730064571327,0.000834,67936.0,67935.0,0.90905503]
[1730064571534,0.000834,67936.0,67935.0,1.0014237]
[1730064571968,0.000834,67936.0,67935.0,1.0014221]
[1730064572407,0.000834,67936.0,67935.0,0.91353674]
[1730064573063,0.000834,67936.0,67935.0,0.91336865]
[1730064574345,0.000834,67936.0,67935.0,0.97925276]
[1730064575465,0.000834,67936.0,67935.0,0.80512198]
[1730064575734,0.000834,67936.0,67935.0,0.8170942]
[1730064577499,0.000834,67936.0,67935.0,0.75121009]
[1730064578175,0.000834,67936.0,67935.0,0.8170942]
[1730064578633,0.000834,67936.0,67935.0,0.75121009]
[1730064578853,0.000834,67936.0,67935.0,0.8170942]
[1730064579339,0.000834,67936.0,67935.0,0.75121009]
[1730064583124,0.000834,67936.0,67935.0,0.73923787]
[1730064583344,0.000834,67936.0,67935.0,0.75121007]
[1730064585566,0.000834,67936.0,67935.0,0.77583082]
[1730064586968,0.000834,67936.0,67935.0,0.77583049]
[1730064587468,0.000834,67936.0,67935.0,0.73193348]
[1730064592435,0.000834,67936.0,67935.0,0.79779063]
[1730064592660,0.000834,67936.0,67935.0,0.80878694]
[1730064593554,0.000834,67936.0,67935.0,0.97087988]
[1730064594692,0.000834,67936.0,67935.0,0.97088147]
[1730064595392,0.000834,67936.0,67935.0,0.90502432]
[1730064595619,0.000834,67936.0,67935.0,0.99283385]
[1730064596313,0.000834,67936.0,67935.0,0.96986375]
[1730064596561,0.000834,67936.0,67935.0,0.99289894]
[1730064597018,0.000834,67936.0,67935.0,0.96989894]
[1730064598610,0.000834,67936.0,67935.0,0.8820716]
[1730064599495,0.000834,67936.0,67935.0,0.99351427]
[1730064600842,0.000834,67936.0,67935.0,0.99370742]
[1730064601553,0.000834,67936.0,67935.0,0.88383076]
[1730064602447,0.000834,67936.0,67935.0,0.9297096]
[1730064604468,0.000834,67936.0,67935.0,0.9001896]
[1730064605174,0.000834,67936.0,67935.0,0.88180857]
[1730064605388,0.000834,67936.0,67935.0,0.90018718]
[1730064606998,0.000834,67936.0,67935.0,1.14460083]
[1730064607238,0.000834,67944.0,67943.0,0.41735067]
[1730064607514,0.000834,67944.0,67943.0,0.84002063]
[1730064607729,0.000834,67944.0,67943.0,0.84413526]
[1730064608670,0.000834,67944.0,67943.0,0.86713526]
[1730064608905,0.000834,67944.0,67943.0,0.86713424]
[1730064609825,0.000834,67944.0,67943.0,0.96713424]
[1730064610059,0.000834,67944.0,67943.0,0.85720785]
[1730064611408,0.000834,67944.0,67943.0,0.87420997]
[1730064612631,0.000834,67944.0,67943.0,0.86235514]
[1730064612856,0.000834,67944.0,67943.0,0.87430983]
[1730064613314,0.000834,67944.0,67943.0,0.71195372]
[1730064613746,0.000834,67944.0,67943.0,0.6949516]
[1730064613983,0.000834,67944.0,67943.0,0.78732027]
[1730064615098,0.000834,67944.0,67943.0,0.6949516]
[1730064615331,0.000834,67944.0,67943.0,0.78732027]
[1730064615999,0.000834,67944.0,67943.0,0.6949516]
[1730064616930,0.000834,67944.0,67943.0,0.78732027]
[1730064617149,0.000834,67944.0,67943.0,0.6949516]
[1730064617592,0.000834,67944.0,67943.0,0.70663977]
[1730064619904,0.000834,67944.0,67943.0,0.69466898]
[1730064620129,0.000834,67944.0,67943.0,0.70663975]
[1730064620346,0.000834,67944.0,67943.0,0.86894161]
[1730064621431,0.000834,67944.0,67943.0,0.93831028]
[1730064621711,0.000834,67944.0,67943.0,0.94271193]
[1730064621930,0.000834,67944.0,67943.0,0.56814161]
[1730064622138,0.000834,67944.0,67943.0,0.40583975]
[1730064624098,0.000834,67944.0,67943.0,0.40583738]
[1730064625471,0.000834,67944.0,67943.0,0.24434246]
[1730064626145,0.080534,67944.0,67943.0,0.24434246]
[1730064627064,0.170834,67944.0,67943.0,0.24434246]
[1730064627505,0.170834,67944.0,67943.0,0.2369749]
[1730064627726,0.170834,67944.0,67943.0,0.0897929]
[1730064628636,0.170834,67944.0,67943.0,0.08518817]
[1730064628868,0.175834,67944.0,67943.0,0.08518817]
[1730064629092,0.323014,67944.0,67943.0,0.08518817]
[1730064629313,0.323014,67944.0,67943.0,0.0735]
[1730064629781,0.4253418,67944.0,67943.0,0.0735]
[1730064630460,0.57588648,67944.0,67943.0,0.0735]
[1730064630937,0.72001554,67944.0,67943.0,0.0735]
[1730064631417,0.67588648,67944.0,67943.0,0.0735]
[1730064631650,0.67588648,67944.0,67935.0,0.001644]
[1730064631651,0.41696567,67936.0,67935.0,0.001644]
[1730064631888,0.324616,67927.0,67926.0,0.001644]
[1730064632144,0.56748848,67927.0,67926.0,0.001644]
[1730064632369,0.56748848,67927.0,67926.0,0.01343259]
[1730064632370,0.57748848,67927.0,67926.0,0.01343259]
[1730064632558,0.70335969,67927.0,67926.0,0.001644]
[1730064633967,0.70335969,67927.0,67920.0,0.22141365]
[1730064633968,0.01,67921.0,67920.0,0.22141365]
[1730064634209,0.32819767,67921.0,67920.0,0.22141365]
[1730064634429,0.32819767,67921.0,67920.0,0.01435688]
[1730064634663,0.147242,67916.0,67913.0,0.22141365]